bitfinex/quotes_BTCUSD_20240901
["timestamp","ask_amount","ask_price","bid_price","bid_amount"]
[1725211935168,0.516607,58071.0,58070.0,0.0008998]
[1725211935379,0.172202,58071.0,58070.0,0.0008998]
[1725211935828,0.19923121,58071.0,58070.0,0.0008998]
[1725211936243,0.54363621,58071.0,58070.0,0.0008998]
[1725211936899,0.19923121,58071.0,58070.0,0.0008998]
[1725211937355,0.02702921,58071.0,58070.0,0.82273112]
[1725211940773,0.02702921,58071.0,58070.0,0.6637158]
[1725211942217,0.000818,58074.0,58073.0,0.177197]
[1725211942470,0.000818,58074.0,58073.0,1.012185]
[1725211942691,0.000818,58074.0,58073.0,1.022185]
[1725211943568,0.000818,58074.0,58073.0,1.017185]
[1725211943768,0.000818,58074.0,58073.0,1.012185]
[1725211944001,0.000818,58074.0,58073.0,1.017185]
[1725211944213,0.000818,58074.0,58073.0,1.012185]
[1725211946143,0.000818,58074.0,58073.0,0.318397]
[1725211946325,0.000818,58074.0,58073.0,0.236897]
[1725211946514,0.000818,58074.0,58073.0,0.586291]
[1725211946727,0.000818,58074.0,58073.0,1.04074521]
[1725211946906,0.000818,58074.0,58073.0,0.586291]
[1725211948115,0.000818,58074.0,58073.0,0.930685]
[1725211948693,0.000818,58074.0,58073.0,0.586291]
[1725211949652,0.000818,58074.0,58073.0,0.172197]
[1725211950177,0.000818,58074.0,58073.0,0.516591]
[1725211950389,0.000818,58074.0,58071.0,0.344404]
[1725211950599,0.000818,58074.0,58070.0,0.0008998]
[1725211950600,0.172202,58071.0,58070.0,0.0008998]
[1725211950810,0.37975541,58074.0,58070.0,0.0008998]
[1725211951027,0.172202,58071.0,58070.0,0.0008998]
[1725211951243,0.234102,58071.0,58070.0,0.0008998]
[1725211951427,0.578507,58071.0,58070.0,0.0008998]
[1725211951848,1.02144095,58071.0,58070.0,0.0008998]
[1725211952052,0.922912,58071.0,58070.0,0.0008998]
[1725211952258,1.004812,58071.0,58070.0,0.0008998]
[1725211953103,0.660407,58071.0,58070.0,0.0008998]
[1725211953308,1.004812,58071.0,58070.0,0.0008998]
[1725211953760,0.74448036,58071.0,58070.0,0.0008998]
[1725211953980,0.91668236,58071.0,58070.0,0.0008998]
[1725211955674,0.94371193,58071.0,58070.0,0.0008998]
[1725211957584,0.59930693,58071.0,58070.0,0.0008998]
[1725211957796,0.02702957,58071.0,58070.0,0.0633998]
[1725211958217,0.02702957,58071.0,58070.0,0.0008998]
[1725211958665,0.19923157,58071.0,58070.0,0.0008998]
[1725211960124,0.02702957,58071.0,58070.0,0.0008998]
[1725211961358,0.19923157,58071.0,58070.0,0.0008998]
[1725211961954,0.59808073,58071.0,58070.0,0.0008998]
[1725211962313,0.67608073,58071.0,58070.0,0.0008998]
[1725211962774,1.05725616,58071.0,58070.0,0.0008998]
[1725211963225,1.002812,58071.0,58070.0,0.0008998]
[1725211964071,0.861012,58071.0,58070.0,0.0008998]
[1725211966127,0.8880417,58071.0,58070.0,0.0008998]
[1725211966576,1.2324467,58071.0,58070.0,0.0008998]
[1725211967044,1.24562712,58071.0,58070.0,0.0008998]
[1725211967286,0.90122212,58071.0,58070.0,0.0008998]
[1725211967480,0.8880417,58071.0,58070.0,0.0008998]
[1725211968214,0.5436367,58071.0,58070.0,0.0008998]
[1725211968654,0.6436367,58071.0,58070.0,0.0008998]
[1725211969320,0.9880417,58071.0,58070.0,0.0008998]
[1725211969788,0.9888597,58071.0,58070.0,0.0008998]
[1725211972764,0.96183,58071.0,58070.0,0.0008998]
[1725211973903,0.445223,58071.0,58070.0,0.0008998]
[1725211974187,0.100818,58071.0,58070.0,0.0008998]
[1725211974413,0.27302,58071.0,58070.0,0.0008998]
[1725211974632,0.96183,58071.0,58070.0,0.0008998]
[1725211974855,0.97501099,58071.0,58070.0,0.0008998]
[1725211975068,0.617425,58071.0,58070.0,0.0008998]
[1725211975977,0.64445391,58071.0,58070.0,0.0008998]
[1725211976449,1.0020448,58071.0,58070.0,0.0008998]
[1725211976664,1.01523065,58071.0,58070.0,0.0008998]
[1725211977096,0.6576398,58071.0,58070.0,0.0008998]
[1725211977796,0.67082627,58071.0,58070.0,0.0008998]
[1725211978244,0.6576398,58071.0,58070.0,0.0008998]
[1725211978458,0.67082649,58071.0,58070.0,0.0008998]
[1725211978914,0.32642149,58071.0,58070.0,0.0008998]
[1725211979147,0.3132348,58071.0,58070.0,0.0008998]
[1725211979585,0.32642081,58071.0,58070.0,0.0008998]
[1725211980041,0.3132348,58071.0,58070.0,0.0008998]
[1725211980274,0.32642076,58071.0,58070.0,0.0008998]
[1725211981003,1.57139904,58071.0,58070.0,0.0008998]
[1725211981234,3.03865104,58071.0,58070.0,0.0008998]
[1725211981472,2.05555204,58071.0,58070.0,0.0008998]
[1725211981688,1.9603028,58071.0,58070.0,0.0008998]
[1725211981909,1.97348542,58071.0,58070.0,0.0008998]
[1725211982133,1.98666791,58071.0,58070.0,0.0008998]
[1725211982379,2.33107291,58071.0,58070.0,0.0008998]
[1725211982834,2.304044,58071.0,58070.0,0.0008998]
[1725211983058,2.060191,58071.0,58070.0,0.0008998]
[1725211983501,2.20237413,58071.0,58070.0,0.0008998]
[1725211985128,2.20237654,58071.0,58070.0,0.0008998]
[1725211985567,2.63674754,58071.0,58070.0,0.0008998]
[1725211986044,2.42304849,58071.0,58070.0,0.0008998]
[1725211986961,2.39601654,58071.0,58070.0,0.0008998]
[1725211987206,2.2274649,58071.0,58070.0,0.0008998]
[1725211987423,1.9144249,58071.0,58070.0,0.0008998]
[1725211988533,1.91442476,58071.0,58070.0,0.0008998]
[1725211988754,1.42541976,58071.0,58070.0,0.0008998]
[1725211989004,1.31941976,58071.0,58070.0,0.0008998]
[1725211989240,2.49390776,58071.0,58070.0,0.0008998]
[1725211989665,2.6624594,58071.0,58070.0,0.0008998]
[1725211989896,2.3156444,58071.0,58070.0,0.0008998]
[1725211990114,2.28306473,58071.0,58070.0,0.0008998]
[1725211991258,1.84268509,58071.0,58070.0,0.0008998]
[1725211991519,1.34645209,58071.0,58070.0,0.0008998]
[1725211991983,2.04409933,58071.0,58070.0,0.0008998]
[1725211992224,2.0572846,58071.0,58070.0,0.0008998]
[1725211992416,2.04409933,58071.0,58070.0,0.0008998]
[1725211992683,1.58502241,58071.0,58070.0,0.0008998]
[1725211992921,1.44865241,58071.0,58070.0,0.0008998]
[1725211995447,1.34645354,58071.0,58070.0,0.0008998]
[1725211997497,1.31942121,58071.0,58070.0,0.0008998]
[1725211998837,2.13156239,58071.0,58070.0,0.0008998]
[1725211999478,1.96689847,58071.0,58070.0,0.0008998]
[1725212000639,2.63990347,58071.0,58070.0,0.0008998]
[1725212001349,2.66693529,58071.0,58070.0,0.0008998]
[1725212002240,2.66693438,58071.0,58070.0,0.0008998]
[1725212002698,2.63990256,58071.0,58070.0,0.0008998]
[1725212003184,2.7323132,58071.0,58070.0,0.0008998]
[1725212003404,2.56376156,58071.0,58070.0,0.0008998]
[1725212004499,2.53529556,58071.0,58070.0,0.0008998]
[1725212004938,2.52265756,58071.0,58070.0,0.0008998]
[1725212005185,1.31942156,58071.0,58070.0,0.0008998]
[1725212005435,1.80869656,58071.0,58070.0,0.0008998]
[1725212005647,1.80869609,58071.0,58070.0,0.0008998]
[1725212005868,1.76550609,58071.0,58070.0,0.0008998]
[1725212006104,1.64550609,58071.0,58070.0,0.0008998]
[1725212006571,1.31942109,58071.0,58070.0,0.0008998]
[1725212007016,1.484305,58071.0,58070.0,0.0008998]
[1725212008165,2.214282,58071.0,58070.0,0.0008998]
[1725212008610,2.186734,58071.0,58070.0,0.0008998]
[1725212008861,1.729649,58071.0,58070.0,0.0008998]
[1725212009118,1.66210726,58071.0,58070.0,0.0008998]
[1725212009363,1.31942035,58071.0,58070.0,0.0008998]
[1725212009596,1.66871647,58071.0,58070.0,0.0008998]
[1725212011253,0.31323647,58071.0,58070.0,0.0646998]
[1725212011583,0.31323647,58071.0,58070.0,0.1412998]
[1725212011584,0.04103447,58071.0,58070.0,0.1412998]
[1725212011828,0.02784912,58071.0,58070.0,0.1412998]
[1725212012513,0.2132382,58071.0,58070.0,0.1412998]
[1725212012745,0.18620708,58071.0,58070.0,0.1412998]
[1725212012974,0.27302,58071.0,58070.0,0.1412998]
[1725212015232,0.100818,58071.0,58070.0,0.1412998]
[1725212015485,0.000818,58071.0,58070.0,0.1412998]
[1725212016108,0.000818,58071.0,58070.0,0.15642356]
[1725212016346,0.000818,58071.0,58070.0,0.1362998]
[1725212016809,0.000818,58071.0,58070.0,0.14474324]
[1725212017028,0.000818,58071.0,58070.0,0.1412998]
[1725212017245,0.000818,58071.0,58070.0,0.21883347]
[1725212017696,0.000818,58071.0,58070.0,0.1362998]
[1725212019523,0.02784206,58071.0,58070.0,0.1362998]
[1725212020199,0.02784206,58071.0,58070.0,0.13974343]
[1725212020425,0.02784206,58071.0,58070.0,0.1362998]
[1725212020880,0.12784206,58071.0,58070.0,0.1362998]
[1725212021334,0.100818,58071.0,58070.0,0.1362998]
[1725212022015,0.172201,58072.0,58070.0,0.1362998]
[1725212022238,0.345208,58074.0,58070.0,0.1362998]
[1725212022239,0.172202,58071.0,58070.0,0.1362998]
[1725212022478,0.516607,58071.0,58070.0,0.1362998]
[1725212024040,0.616607,58071.0,58070.0,0.1362998]
[1725212025349,0.272202,58071.0,58070.0,0.1362998]
[1725212025578,0.1,58071.0,58070.0,0.1362998]
[1725212025823,0.000818,58074.0,58070.0,0.1362998]
[1725212025824,0.000818,58074.0,58073.0,0.005]
[1725212026043,0.000818,58074.0,58073.0,0.16224297]
[1725212026528,0.000818,58074.0,58073.0,0.328997]
[1725212026761,0.000818,58074.0,58073.0,0.1568]
[1725212027010,0.000818,58074.0,58073.0,0.23704589]
[1725212027477,0.000818,58074.0,58073.0,0.41268597]
[1725212027914,0.000818,58074.0,58073.0,0.75363689]
[1725212028153,0.000818,58074.0,58073.0,1.12303089]
[1725212028375,0.000818,58077.0,58076.0,0.83437932]
[1725212028631,0.000818,58077.0,58076.0,1.30326066]
[1725212029073,0.000818,58077.0,58076.0,0.28330534]
[1725212029295,0.000818,58077.0,58076.0,0.33828742]
[1725212029517,0.000818,58077.0,58076.0,0.45893617]
[1725212029736,0.000818,58077.0,58076.0,0.51047542]
[1725212030410,0.000818,58077.0,58076.0,0.50847542]
[1725212030680,0.1,58090.0,58080.0,0.015]
[1725212030953,0.0632,58110.0,58080.0,0.015]
[1725212030954,0.172103,58105.0,58095.0,0.0756]
[1725212031182,0.083718,58115.0,58094.0,0.0662]
[1725212031183,0.000818,58115.0,58103.0,0.0662]
[1725212031673,0.1721,58106.0,58103.0,0.0662]
[1725212031900,0.1721,58106.0,58103.0,0.08038]
[1725212032119,0.344191,58108.0,58103.0,0.08038]
[1725212032120,0.516286,58108.0,58103.0,0.08038]
[1725212032340,0.172097,58107.0,58103.0,0.08038]
[1725212032558,0.344191,58108.0,58103.0,0.08038]
[1725212032559,0.172101,58106.0,58103.0,0.08038]
[1725212032794,0.172101,58106.0,58103.0,0.0662]
[1725212033067,0.1,58105.0,58103.0,0.0662]
[1725212033719,0.34417,58111.0,58103.0,0.0662]
[1725212033720,0.272096,58107.0,58103.0,0.0662]
[1725212033947,0.05819091,58107.0,58104.0,0.01418]
[1725212034182,0.172096,58107.0,58104.0,0.01762175]
[1725212034485,0.172096,58107.0,58104.0,0.01418]
[1725212034739,0.344181,58109.0,58105.0,0.015598]
[1725212034740,0.172091,58109.0,58105.0,0.015598]
[1725212034965,0.172091,58109.0,58106.0,0.0662]
[1725212035431,0.34417,58111.0,58106.0,0.0662]
[1725212035432,0.172086,58111.0,58106.0,0.0662]
[1725212035659,0.17208,58113.0,58107.0,0.0842798]
[1725212035872,0.344151,58114.0,58108.0,0.0662]
[1725212036091,0.172088,58110.0,58108.0,0.0662]
[1725212036541,0.1,58109.0,58108.0,0.0662]
[1725212036763,0.27209,58109.0,58108.0,0.0662]
[1725212038762,0.96045,58109.0,58108.0,0.0662]
[1725212039008,0.172106,58104.0,58102.0,0.0785]
[1725212039236,0.1,58103.0,58102.0,0.0785]
[1725212039454,0.1,58103.0,58102.0,0.1413]
[1725212041022,0.1,58103.0,58102.0,0.16193]
[1725212041257,0.000818,58109.0,58108.0,0.005]
[1725212041476,0.000818,58109.0,58108.0,0.14974099]
[1725212041993,0.000818,58109.0,58108.0,0.1463]
[1725212042215,0.000818,58109.0,58108.0,0.19724163]
[1725212042446,0.000818,58109.0,58108.0,0.40577574]
[1725212042667,0.000818,58109.0,58108.0,1.09414774]
[1725212043830,0.000818,58109.0,58108.0,0.74652063]
[1725212044732,0.000818,58109.0,58108.0,0.40233463]
[1725212044953,0.000818,58109.0,58108.0,1.09070663]
[1725212045609,0.000818,58109.0,58108.0,0.74652063]
[1725212045879,0.000818,58109.0,58108.0,1.09070663]
[1725212046096,0.000818,58109.0,58108.0,0.74652063]
[1725212046317,0.000818,58109.0,58108.0,0.22824163]
[1725212046531,0.000818,58109.0,58108.0,0.40233463]
[1725212047204,0.000818,58109.0,58108.0,0.20524163]
[1725212047424,0.000818,58109.0,58108.0,0.1563]
[1725212048695,0.02782233,58109.0,58108.0,0.1563]
[1725212048923,0.02782233,58109.0,58108.0,0.1463]
[1725212049397,0.172099,58106.0,58104.0,0.0628]
[1725212049664,0.344187,58108.0,58105.0,0.017193]
[1725212050117,0.172096,58107.0,58105.0,0.017193]
[1725212050801,0.172093,58108.0,58105.0,0.017193]
[1725212051029,0.172093,58108.0,58104.0,0.0678]
[1725212051030,0.172093,58108.0,58106.0,0.0173493]
[1725212051455,0.02782233,58109.0,58108.0,0.005]
[1725212051893,0.02782233,58109.0,58108.0,0.1463]
[1725212052574,0.000818,58109.0,58108.0,0.1463]
[1725212052797,0.172908,58109.0,58108.0,0.1413]
[1725212053013,0.172908,58109.0,58103.0,0.0636987]
[1725212053014,0.172099,58106.0,58103.0,0.0636987]
[1725212053231,0.51629,58107.0,58103.0,0.0636987]
[1725212053522,0.172099,58106.0,58103.0,0.0686987]
[1725212053786,0.000818,58109.0,58103.0,0.0686987]
[1725212053787,0.516315,58104.0,58103.0,0.0008987]
[1725212054005,0.860525,58104.0,58103.0,0.0008987]
[1725212054443,0.960525,58104.0,58103.0,0.0008987]
[1725212055353,1.2019775,58104.0,58103.0,0.0008987]
[1725212055577,1.5461875,58104.0,58103.0,0.0008987]
[1725212056027,1.57320168,58104.0,58103.0,0.0008987]
[1725212056254,1.47714918,58104.0,58103.0,0.0008987]
[1725212056963,1.49031694,58104.0,58103.0,0.0008987]
[1725212057186,1.47714918,58104.0,58103.0,0.0008987]
[1725212057518,1.49031748,58104.0,58103.0,0.0008987]
[1725212057733,2.29426423,58104.0,58103.0,0.0008987]
[1725212057958,2.63847423,58104.0,58103.0,0.0008987]
[1725212058407,1.99315523,58104.0,58103.0,0.0008987]
[1725212058665,1.88293123,58104.0,58103.0,0.0008987]
[1725212059114,2.22714123,58104.0,58103.0,0.0008987]
[1725212059566,2.00332448,58104.0,58103.0,0.0008987]
[1725212059804,1.49031748,58104.0,58103.0,0.0008987]
[1725212060248,1.83452748,58104.0,58103.0,0.0008987]
[1725212060498,1.47714918,58104.0,58103.0,0.0008987]
[1725212060740,1.49031714,58104.0,58103.0,0.0008987]
[1725212062590,1.83452714,58104.0,58103.0,0.0008987]
[1725212062794,1.80751296,58104.0,58103.0,0.0008987]
[1725212063478,1.46330296,58104.0,58103.0,0.0008987]
[1725212064168,1.80751296,58104.0,58103.0,0.0008987]
[1725212064418,1.450135,58104.0,58103.0,0.0008987]
[1725212065581,1.386635,58104.0,58103.0,0.0008987]
[1725212065800,1.387452,58104.0,58103.0,0.0008987]
[1725212066024,1.41446628,58104.0,58103.0,0.0008987]
[1725212067017,1.33256628,58104.0,58103.0,0.0008987]
[1725212067274,1.48064291,58104.0,58103.0,0.0008987]
[1725212067796,1.33256628,58104.0,58103.0,0.0008987]
[1725212068229,1.75717628,58104.0,58103.0,0.0008987]
[1725212068482,1.41296628,58104.0,58103.0,0.0008987]
[1725212068713,1.82347628,58104.0,58103.0,0.0008987]
[1725212070763,1.82347628,58104.0,58078.0,0.59250606]
[1725212070764,0.516519,58081.0,58080.0,0.0652]
[1725212070982,0.172173,58081.0,58080.0,0.0652]
[1725212071198,0.272173,58081.0,58080.0,0.0652]
[1725212071417,0.960865,58081.0,58080.0,0.0652]
[1725212071692,0.98788521,58081.0,58080.0,0.0652]
[1725212072131,0.64353921,58081.0,58080.0,0.0652]
[1725212072568,0.12702021,58081.0,58080.0,0.07956]
[1725212072791,0.1,58083.0,58081.0,0.0784]
[1725212073058,0.1,58086.0,58084.0,0.0652]
[1725212073278,0.272152,58088.0,58087.0,0.0652]
[1725212073496,0.172152,58088.0,58087.0,0.0652]
[1725212073717,0.272152,58088.0,58087.0,0.0652]
[1725212073940,0.1,58088.0,58087.0,0.0652]
[1725212074160,0.1,58088.0,58087.0,0.175336]
[1725212074835,0.172142,58092.0,58088.0,0.0652]
[1725212075073,0.1,58091.0,58088.0,0.0652]
[1725212075301,0.272144,58091.0,58088.0,0.0652]
[1725212076503,0.272144,58091.0,58090.0,0.1486]
[1725212076504,0.1,58091.0,58090.0,0.1486]
[1725212076759,0.1,58091.0,58090.0,0.1716]
[1725212077023,0.1,58093.0,58090.0,0.1716]
[1725212077256,0.88773274,58091.0,58090.0,0.0657]
[1725212077749,0.98773274,58091.0,58090.0,0.0657]
[1725212078399,0.98773274,58091.0,58090.0,0.0665987]
[1725212082719,0.960717,58091.0,58090.0,0.0665987]
[1725212083194,1.305004,58091.0,58090.0,0.0008987]
[1725212084811,1.649291,58091.0,58090.0,0.0008987]
[1725212085031,1.66247643,58091.0,58090.0,0.0008987]
[1725212085937,1.68949604,58091.0,58090.0,0.0008987]
[1725212086586,1.68949557,58091.0,58090.0,0.0008987]
[1725212087500,1.68949537,58091.0,58090.0,0.0008987]
[1725212088154,1.6894957,58091.0,58090.0,0.0008987]
[1725212088913,1.33202361,58091.0,58090.0,0.0008987]
[1725212089140,1.33202361,58091.0,58090.0,0.0665987]
[1725212089366,1.33202361,58091.0,58090.0,0.0008987]
[1725212089854,1.47841098,58091.0,58090.0,0.0008987]
[1725212090559,1.47841067,58091.0,58090.0,0.0008987]
[1725212090806,1.96069767,58091.0,58090.0,0.0008987]
[1725212091279,1.82749531,58091.0,58090.0,0.0008987]
[1725212091842,1.8004757,58091.0,58090.0,0.0008987]
[1725212092750,1.7389757,58091.0,58090.0,0.0008987]
[1725212092962,1.6624757,58091.0,58090.0,0.0008987]
[1725212094995,1.66247554,58091.0,58090.0,0.0008987]
[1725212095218,1.85804717,58091.0,58090.0,0.0008987]
[1725212096575,1.85804647,58091.0,58090.0,0.0008987]
[1725212097257,1.68949483,58091.0,58090.0,0.0008987]
[1725212098597,1.34520783,58091.0,58090.0,0.0620987]
[1725212098818,0.98773699,58091.0,58090.0,0.0620987]
[1725212100473,0.12701999,58091.0,58090.0,0.0620987]
[1725212100691,0.02701999,58091.0,58090.0,0.15462284]
[1725212101420,0.02701999,58091.0,58090.0,0.23428753]
[1725212101649,0.02701999,58091.0,58090.0,0.18262284]
[1725212102159,0.02701999,58091.0,58090.0,0.28562908]
[1725212102418,0.02701999,58091.0,58090.0,0.1677987]
[1725212102653,0.344269,58095.0,58090.0,0.1677987]
[1725212102654,0.17214,58093.0,58090.0,0.21446928]
[1725212102888,0.17214,58093.0,58091.0,0.023]
[1725212103075,0.1,58092.0,58091.0,0.023]
[1725212103577,0.51643,58091.0,58090.0,0.19146928]
[1725212103924,0.960717,58091.0,58090.0,0.0620987]
[1725212104158,1.305004,58091.0,58090.0,0.0620987]
[1725212106013,1.3320204,58091.0,58090.0,0.0620987]
[1725212106472,0.9877334,58091.0,58090.0,0.08174563]
[1725212106692,0.1270164,58091.0,58090.0,0.21611621]
[1725212106929,0.0270164,58091.0,58090.0,0.18744563]
[1725212107159,0.0270164,58091.0,58090.0,0.29045187]
[1725212107939,0.0270164,58091.0,58090.0,0.18744563]
[1725212108155,0.0270164,58091.0,58090.0,0.1677987]
[1725212108371,0.0270164,58091.0,58090.0,0.24029246]
[1725212108588,0.1270164,58091.0,58090.0,0.1627987]
[1725212108834,0.1270164,58091.0,58090.0,0.1677987]
[1725212109051,0.1270164,58091.0,58090.0,0.24529246]
[1725212110479,0.1270164,58091.0,58090.0,0.31141391]
[1725212110919,0.0270164,58091.0,58090.0,0.31141391]
[1725212111648,0.0270164,58091.0,58090.0,0.31140136]
[1725212111865,0.344223,58102.0,58098.0,0.0612]
[1725212112091,0.000818,58109.0,58098.0,0.0612]
[1725212112313,0.344223,58102.0,58099.0,0.003442]
[1725212112533,0.172114,58101.0,58100.0,0.0612]
[1725212113020,0.517143,58103.0,58100.0,0.0809342]
[1725212113208,0.000817,58103.0,58102.0,0.0612]
[1725212113850,0.000817,58103.0,58102.0,0.31945287]
[1725212114070,0.000817,58103.0,58102.0,0.69667431]
[1725212114297,0.000817,58103.0,58102.0,1.28573104]
[1725212114509,0.000817,58103.0,58102.0,1.18243798]
[1725212114945,0.000817,58103.0,58102.0,0.83821598]
[1725212115184,0.000817,58103.0,58102.0,0.96719682]
[1725212115626,0.000817,58103.0,58102.0,0.83821598]
[1725212115875,0.000817,58103.0,58102.0,0.31844167]
[1725212116126,0.000817,58103.0,58102.0,0.1769]
[1725212116336,0.000817,58103.0,58102.0,0.22845703]
[1725212117031,0.000817,58103.0,58102.0,0.22845424]
[1725212117501,0.000817,58103.0,58102.0,0.1769]
[1725212118240,0.000817,58103.0,58102.0,0.22845424]
[1725212118466,0.000817,58103.0,58102.0,0.26078668]
[1725212119164,0.000817,58103.0,58102.0,0.31234092]
[1725212119433,0.000817,58103.0,58102.0,0.26078668]
[1725212121686,0.000817,58103.0,58102.0,0.77711968]
[1725212121913,0.000817,58103.0,58102.0,0.82862303]
[1725212122356,0.000817,58103.0,58102.0,0.30729003]
[1725212122588,0.000817,58103.0,58102.0,0.26078668]
[1725212122840,0.000817,58103.0,58102.0,0.1769]
[1725212124407,0.172925,58103.0,58102.0,0.0842]
[1725212124633,0.172925,58103.0,58102.0,0.023]
[1725212124856,0.172925,58103.0,58101.0,0.005]
[1725212125074,0.172117,58100.0,58099.0,0.0654]
[1725212126613,0.516351,58100.0,58099.0,0.0654]
[1725212127333,0.172117,58100.0,58099.0,0.0654]
[1725212127748,0.172117,58100.0,58099.0,0.0704]
[1725212128625,0.860585,58100.0,58099.0,0.0654]
[1725212128830,0.000817,58103.0,58096.0,0.005]
[1725212128831,0.172122,58098.0,58097.0,0.0654]
[1725212129052,0.172122,58098.0,58097.0,0.0884]
[1725212129698,0.516367,58098.0,58097.0,0.0884]
[1725212129909,0.344245,58098.0,58091.0,0.0662998]
[1725212130126,0.17214,58092.0,58091.0,0.0662998]
[1725212130381,0.516421,58092.0,58091.0,0.0662998]
[1725212130781,0.17214,58092.0,58091.0,0.0662998]
[1725212130993,0.860702,58092.0,58091.0,0.0662998]
[1725212131224,0.860702,58092.0,58091.0,0.0008998]
[1725212134072,0.344281,58092.0,58091.0,0.0008998]
[1725212134354,0.516421,58092.0,58091.0,0.0662998]
[1725212134579,0.344273,58094.0,58091.0,0.0662998]
[1725212134580,0.172135,58094.0,58091.0,0.08156965]
[1725212134793,0.172135,58094.0,58092.0,0.023]
[1725212135008,0.344261,58096.0,58092.0,0.023]
[1725212135009,0.272137,58093.0,58092.0,0.023]
[1725212136352,0.616412,58093.0,58092.0,0.023]
[1725212136556,0.616412,58093.0,58091.0,0.0008998]
[1725212136557,0.921002,58092.0,58091.0,0.0008998]
[1725212136980,0.860702,58092.0,58091.0,0.0008998]
[1725212137832,0.86152,58092.0,58091.0,0.0008998]
[1725212138048,1.205801,58092.0,58091.0,0.0008998]
[1725212138277,1.305801,58092.0,58091.0,0.0008998]
[1725212138494,1.790782,58092.0,58091.0,0.0008998]
[1725212138708,1.446501,58092.0,58091.0,0.0008998]
[1725212140288,1.20837635,58092.0,58091.0,0.0008998]
[1725212140983,1.38051635,58092.0,58091.0,0.0008998]
[1725212142347,0.55125435,58092.0,58091.0,0.0620998]
[1725212142557,0.55125435,58092.0,58091.0,0.07635965]
[1725212143003,0.000818,58092.0,58091.0,0.35610265]
[1725212144102,0.000818,58092.0,58091.0,0.35810265]
[1725212144562,0.000818,58092.0,58091.0,0.71238965]
[1725212145205,0.000818,58092.0,58091.0,1.05667665]
[1725212145889,0.000818,58092.0,58091.0,1.13399375]
[1725212146393,0.000818,58092.0,58091.0,0.71238965]
[1725212146814,0.000818,58092.0,58091.0,0.6981298]
[1725212147292,0.000818,58092.0,58091.0,0.3538428]
[1725212147542,0.000818,58092.0,58091.0,0.1796998]
[1725212147776,0.000818,58092.0,58091.0,0.1566998]
[1725212148763,0.000818,58092.0,58091.0,0.20825114]
[1725212148990,0.000818,58092.0,58091.0,0.1796998]
[1725212151325,0.000818,58092.0,58091.0,0.29311741]
[1725212151760,0.000818,58092.0,58091.0,0.29655983]
[1725212151977,0.000818,58092.0,58091.0,0.29311741]
[1725212152190,0.000818,58092.0,58091.0,0.21580031]
[1725212152837,0.000818,58092.0,58091.0,0.31888978]
[1725212153732,0.000818,58092.0,58091.0,0.32088978]
[1725212153964,0.000818,58092.0,58091.0,0.1816998]
[1725212154180,0.000818,58092.0,58091.0,0.1796998]
[1725212154420,0.172958,58092.0,58091.0,0.07547084]
[1725212154673,0.86152,58092.0,58091.0,0.0238998]
[1725212155114,0.86152,58092.0,58091.0,0.0008998]
[1725212157197,0.8885352,58092.0,58091.0,0.0008998]
[1725212158901,0.8885352,58092.0,58091.0,0.02359963]
[1725212158902,0.1999732,58092.0,58091.0,0.02359963]
[1725212159106,0.00127426,58092.0,58091.0,0.08145695]
[1725212159265,0.172115,58101.0,58099.0,0.005]
[1725212159490,0.172115,58101.0,58100.0,0.023]
[1725212159644,0.272115,58101.0,58100.0,0.023]
[1725212160073,0.000817,58103.0,58102.0,0.005]
[1725212160294,0.000817,58103.0,58102.0,0.03144172]
[1725212160496,0.000817,58103.0,58102.0,0.08300382]
[1725212160712,0.000817,58103.0,58102.0,0.03144172]
[1725212160913,0.000817,58103.0,58102.0,0.03344172]
[1725212161115,0.000817,58103.0,58102.0,0.08169081]
[1725212161542,0.000817,58103.0,58102.0,0.3053618]
[1725212161913,0.000817,58103.0,58102.0,0.25380181]
[1725212162341,0.000817,58103.0,58102.0,0.25580181]
[1725212162780,0.000817,58103.0,58102.0,0.30736579]
[1725212163005,0.000817,58103.0,58102.0,0.08369081]
[1725212163681,0.000817,58103.0,58102.0,0.16103397]
[1725212164150,0.000817,58103.0,58102.0,0.67736697]
[1725212164392,0.000817,58103.0,58102.0,0.73866697]
[1725212164621,0.000817,58103.0,58102.0,1.09784581]
[1725212165255,0.000817,58103.0,58102.0,1.19750995]
[1725212165559,0.000817,58103.0,58102.0,1.53973195]
[1725212165796,0.000817,58103.0,58102.0,1.43662609]
[1725212166243,0.000817,58103.0,58102.0,1.56748675]
[1725212166477,0.000817,58103.0,58102.0,1.43662609]
[1725212166915,0.000817,58103.0,58102.0,1.43862609]
[1725212169423,0.344104,58122.0,58118.0,0.007]
[1725212169612,0.172058,58120.0,58119.0,0.023]
[1725212171700,0.272058,58120.0,58119.0,0.023]
[1725212172805,0.272058,58120.0,58119.0,0.028]
[1725212173999,0.272876,58120.0,58119.0,0.028]
[1725212175373,0.272876,58120.0,58119.0,0.03]
[1725212175619,0.100818,58120.0,58119.0,0.0563372]
[1725212175806,0.100818,58120.0,58119.0,0.03]
[1725212176514,0.000818,58120.0,58119.0,0.03]
[1725212176712,0.100818,58120.0,58119.0,0.03]
[1725212176836,0.100818,58120.0,58119.0,0.0907509]
[1725212177282,0.100818,58120.0,58119.0,0.7541319]
[1725212177283,0.000818,58120.0,58119.0,0.7541319]
[1725212177511,0.000818,58120.0,58119.0,1.0982529]
[1725212179036,0.000818,58120.0,58119.0,1.4423739]
[1725212179940,0.000818,58120.0,58119.0,1.49388289]
[1725212180889,0.000818,58120.0,58119.0,1.49188289]
[1725212181123,0.000818,58120.0,58119.0,1.7864949]
[1725212182214,0.000818,58120.0,58119.0,1.91480382]
[1725212182439,0.00818,58132.0,58131.0,0.877125]
[1725212182691,0.00819,58143.0,58131.0,0.877125]
[1725212182692,0.50540786,58163.0,58150.0,0.530907]
[1725212182939,0.0765,58166.0,58150.0,0.530907]
[1725212182940,0.02699026,58164.0,58150.0,1.37979832]
[1725212183162,0.02699026,58164.0,58150.0,1.53999832]
[1725212183394,0.1,58168.0,58150.0,1.53999832]
[1725212183629,0.1,58168.0,58150.0,1.61696319]
[1725212183868,0.1,58168.0,58150.0,1.53999832]
[1725212184086,0.787665,58168.0,58150.0,1.26182929]
[1725212184331,0.271917,58168.0,58150.0,1.60576729]
[1725212184791,0.443834,58168.0,58150.0,1.31302175]
[1725212185038,0.443834,58168.0,58150.0,1.26182929]